bitfinex-derivatives/quotes_SOLF0:USTF0_20250212
["timestamp","ask_amount","ask_price","bid_price","bid_amount"]
[1739323062051,5.0753,197.06,197.04,0.03528647]
[1739323062457,8.90791326,197.05,197.04,0.03528647]
[1739323062652,13.98351326,197.05,197.04,0.03528647]
[1739323065466,8.90791326,197.05,197.04,0.03528647]
[1739323067064,8.94296863,197.07,197.04,0.03528647]
[1739323068157,5.0756,197.05,197.04,0.03528647]
[1739323068359,13.98351326,197.05,197.04,0.03528647]
[1739323068561,8.90791326,197.05,197.04,0.03528647]
[1739323069761,14.01806863,197.07,197.04,0.03528647]
[1739323070366,8.94296863,197.07,197.04,0.03528647]
[1739323070565,5.0753,197.06,197.04,0.03528647]
[1739323071469,8.94296863,197.07,197.04,0.03528647]
[1739323072065,13.98351326,197.05,197.04,0.03528647]
[1739323075172,8.90791326,197.05,197.04,0.03528647]
[1739323075474,14.01816863,197.07,197.04,0.03528647]
[1739323075969,8.94296863,197.07,197.04,0.03528647]
[1739323076166,5.0754,197.06,197.04,0.03528647]
[1739323076471,8.90791326,197.05,197.04,0.03528647]
[1739323077362,13.98351326,197.05,197.04,0.03528647]
[1739323077566,8.90791326,197.05,197.04,0.03528647]
[1739323077870,8.94296863,197.07,197.04,0.03528647]
[1739323078172,5.0754,197.06,197.04,0.03528647]
[1739323081469,0.03505537,197.07,197.04,0.03528647]
[1739323081775,8.90791326,197.13,197.05,8.90791326]
[1739323081969,8.90791326,197.15,197.08,8.90791326]
[1739323082472,5.0735,197.14,197.09,5.0745]
[1739323083072,0.03470984,197.13,197.1,0.03591582]
[1739323083372,0.03470984,197.13,197.1,5.11011582]
[1739323083773,0.03470984,197.13,197.1,8.94382908]
[1739323084275,0.03470984,197.13,197.11,5.074]
[1739323084475,0.03470984,197.13,197.1,8.94382908]
[1739323085376,0.03470984,197.13,197.1,0.03591582]
[1739323086777,0.03470984,197.13,197.1,5.11011582]
[1739323087979,8.9426231,197.13,197.1,0.03591582]
[1739323088180,8.90791326,197.11,197.1,0.03591582]
[1739323088676,13.98191326,197.11,197.1,0.03591582]
[1739323090884,13.98301326,197.07,197.0,8.90791326]
[1739323091184,8.90791326,197.07,197.0,8.90791326]
[1739323091584,8.90791326,197.07,197.03,5.0759]
[1739323091983,8.94019307,197.07,197.03,5.10888824]
[1739323092182,8.94019307,197.07,197.04,5.0758]
[1739323092583,0.03227981,197.07,197.03,0.03298824]
[1739323092881,0.03227981,197.07,197.06,5.0753]
[1739323093380,0.03227981,197.07,197.04,13.98351326]
[1739323093691,0.03227981,197.07,197.03,0.03298824]
[1739323095790,0.03227981,197.07,197.06,5.0753]
[1739323099087,5.0739,197.12,197.06,5.0753]
[1739323099392,61.68888185,197.16,197.09,5.0744]
[1739323099791,61.68888185,197.16,197.04,13.91138393]
[1739323100394,0.03591341,197.12,197.08,0.03284601]
[1739323102192,5.0746,197.09,197.08,0.03284601]
[1739323103088,5.0744,197.1,197.08,0.03284601]
[1739323104088,5.0746,197.09,197.08,0.03284601]
[1739323104489,0.03591341,197.12,197.08,0.03284601]
[1739323104788,5.0741,197.11,197.08,0.03284601]
[1739323105092,0.03591341,197.12,197.08,0.03284601]
[1739323107589,0.03591341,197.12,197.08,5.10764601]
[1739323108489,5.10991341,197.12,197.08,5.10764601]
[1739323108791,0.03591341,197.12,197.08,0.03284601]
[1739323109093,0.03591341,197.12,197.09,5.0745]
[1739323109592,5.10971341,197.12,197.08,5.10764601]
[1739323111895,0.03591341,197.12,197.08,0.03284601]
[1739323112796,13.91138393,197.11,197.08,0.03284601]
[1739323113793,5.0746,197.09,197.08,0.03284601]
[1739323115597,13.98011829,197.09,197.08,0.03284601]
[1739323115800,5.0761,197.03,197.0,7.02777838]
[1739323116896,13.98141829,197.04,197.0,7.02777838]
[1739323117091,0.03652865,197.03,197.0,7.06571012]
[1739323117495,0.03652865,197.03,197.0,12.14241012]
[1739323118694,0.03652865,197.03,197.0,7.06571012]
[1739323118898,5.11272865,197.03,197.0,7.06571012]
[1739323119794,5.11272865,197.03,197.0,0.03793174]
[1739323120098,0.03652865,197.03,197.0,0.03793174]
[1739323120301,8.90551829,197.02,197.0,0.03793174]
[1739323120598,5.0766,197.01,197.0,0.03793174]
[1739323128001,5.11272865,197.03,197.0,0.03793174]
[1739323128203,0.03652865,197.03,197.0,0.03793174]
[1739323128804,5.11272865,197.03,197.0,0.03793174]
[1739323129206,0.03652865,197.03,197.0,0.03793174]
[1739323131305,0.03652865,197.03,197.0,1.62423174]
[1739323131610,0.03652865,197.03,197.02,5.0764]
[1739323132512,5.0746,197.09,197.04,5.0758]
[1739323132713,5.0746,197.09,197.04,13.98131829]
[1739323133011,8.90551829,197.1,197.04,8.90551829]
[1739323133314,109.38551829,197.14,197.06,8.90551829]
[1739323133612,0.037205,197.12,197.08,14.01502412]
[1739323133809,0.037205,197.12,197.09,1.537]
[1739323135916,0.037205,197.12,197.09,6.6115]
[1739323136302,0.037205,197.12,197.09,1.537]
[1739323136508,0.037205,197.12,197.1,5.0743]
[1739323138214,0.037205,197.12,197.09,1.537]
[1739323138413,0.037205,197.12,197.09,6.6115]
[1739323138913,0.037205,197.12,197.1,5.0741]
[1739323140013,5.111205,197.12,197.09,1.537]
[1739323140417,0.037205,197.12,197.09,1.537]
[1739323141110,5.074,197.11,197.09,1.537]
[1739323141514,8.94272329,197.12,197.09,1.537]
[1739323141813,0.037205,197.12,197.09,1.537]
[1739323142509,0.037205,197.12,197.1,5.0742]
[1739323142814,8.90551829,197.18,197.1,8.90551829]
[1739323143116,8.90551829,197.18,197.12,5.0736]
[1739323143117,13.97801829,197.18,197.12,5.0736]
[1739323143316,8.90551829,197.18,197.12,5.0736]
[1739323143516,8.90551829,197.18,197.1,10.48991829]
[1739323143716,5.0725,197.17,197.1,10.48991829]
[1739323143914,0.03696669,197.16,197.12,0.0338164]
[1739323144820,0.03696669,197.16,197.12,8.93933469]
[1739323145117,0.03696669,197.16,197.14,5.0731]
[1739323146515,0.03696669,197.16,197.13,5.0735]
[1739323146820,0.03696669,197.16,197.12,8.93933469]
[1739323147318,0.03696669,197.16,197.13,5.0733]
[1739323148911,0.03696669,197.16,197.12,8.93933469]
[1739323149114,5.072,197.19,197.14,5.073]
[1739323149417,8.90551829,197.2,197.14,5.073]
[1739323149617,5.0725,197.18,197.13,5.0735]
[1739323150015,8.90551829,197.2,197.12,8.93933469]
[1739323150221,5.0727,197.17,197.12,14.01303469]
[1739323150515,8.93746568,197.18,197.12,8.93933469]
[1739323150720,8.93746568,197.18,197.12,0.0338164]
[1739323151214,5.0732,197.15,197.12,0.0338164]
[1739323151419,8.93746568,197.18,197.12,0.0338164]
[1739323152718,5.0732,197.15,197.12,0.0338164]
[1739323152917,8.93746568,197.18,197.12,0.0338164]
[1739323153322,5.0731,197.15,197.12,0.0338164]
[1739323154022,5.0734,197.14,197.12,0.0338164]
[1739323155921,8.90551829,197.16,197.12,0.0338164]
[1739323156226,5.0735,197.13,197.12,0.0338164]
[1739323159722,8.90551829,197.16,197.12,0.0338164]
[1739323160622,0.03194739,197.18,197.12,8.93933469]
[1739323160827,0.03194739,197.18,197.13,1.5451]
[1739323161827,5.10434739,197.18,197.13,6.6186]
[1739323162428,0.03194739,197.18,197.14,13.97881829]
[1739323163625,0.03194739,197.18,197.14,8.90551829]
[1739323163830,8.90551829,197.22,197.16,8.90551829]
[1739323164126,8.90551829,197.22,197.14,8.90551829]
[1739323164326,8.90551829,197.2,197.13,4.5559]
[1739323164726,5.0723,197.18,197.13,4.5559]
[1739323164922,0.03550095,197.18,197.15,0.03847896]
[1739323165531,5.0728,197.16,197.15,0.03847896]
[1739323167937,5.0725,197.17,197.15,0.03847896]
[1739323168338,5.0728,197.16,197.15,0.03847896]
[1739323169536,5.10800095,197.18,197.15,0.03847896]
[1739323169737,0.03550095,197.18,197.15,0.03847896]
[1739323170738,5.0726,197.17,197.15,0.03847896]
[1739323171931,5.10800095,197.18,197.15,0.03847896]
[1739323173040,0.03550095,197.18,197.15,0.03847896]
[1739323173936,5.0725,197.17,197.15,0.03847896]
[1739323174638,0.03550095,197.18,197.15,0.03847896]
[1739323174843,0.03550095,197.18,197.16,8.90551829]
[1739323175746,0.03550095,197.18,197.17,5.0725]
[1739323177443,0.03550095,197.18,197.16,13.97821829]
[1739323177648,0.03550095,197.18,197.15,0.03847896]
[1739323178145,5.0725,197.17,197.15,0.03847896]
[1739323178345,0.03550095,197.18,197.15,0.03847896]
[1739323178745,5.10770095,197.18,197.15,0.03847896]
[1739323179947,5.10770095,197.18,197.15,5.11147896]
[1739323180150,0.03550095,197.18,197.15,5.11147896]
[1739323180845,5.10780095,197.18,197.15,5.11147896]
[1739323182052,0.03550095,197.18,197.15,5.11147896]
[1739323184554,5.10780095,197.18,197.15,5.11147896]
[1739323185752,0.03550095,197.18,197.15,5.11147896]
[1739323185947,0.03550095,197.18,197.15,0.03847896]
[1739323186254,0.03550095,197.18,197.16,8.90551829]
[1739323186554,0.03550095,197.18,197.17,5.0725]
[1739323194759,0.03550095,197.18,197.16,13.97821829]
[1739323194961,0.03550095,197.18,197.16,8.90551829]
[1739323195160,0.03550095,197.18,197.15,0.03847896]
[1739323195862,0.03550095,197.18,197.16,5.0727]
[1739323196166,0.03550095,197.18,197.15,0.03847896]
[1739323196661,0.03550095,197.18,197.15,5.11127896]
[1739323199062,0.03550095,197.18,197.15,0.03847896]
[1739323200263,0.03550095,197.18,197.15,5.11147896]
[1739323202867,5.10780095,197.18,197.15,0.03847896]
[1739323203167,0.03550095,197.18,197.15,0.03847896]
[1739323203663,5.0727,197.17,197.15,0.03847896]
[1739323204060,5.0728,197.16,197.15,0.03847896]
[1739323204366,13.97831829,197.16,197.15,0.03847896]
[1739323205368,5.074,197.11,197.1,7.02777838]
[1739323205769,8.90551829,197.13,197.1,7.02777838]
[1739323205964,8.90551829,197.15,197.1,7.02777838]
[1739323206172,8.90551829,197.17,197.1,8.90551829]
[1739323206369,8.90551829,197.17,197.11,5.074]
[1739323206665,0.03527866,197.15,197.12,8.9417225]
[1739323206867,0.03527866,197.15,197.14,13.97881829]
[1739323207072,0.03527866,197.15,197.14,8.90551829]
[1739323212067,0.03527866,197.15,197.14,13.97881829]
[1739323212268,5.0716,197.21,197.14,8.90551829]
[1739323212463,5.0716,197.21,197.17,8.90551829]
[1739323212775,8.90551829,197.27,197.19,8.90551829]
[1739323212974,8.90551829,197.27,197.21,8.90551829]
[1739323213576,0.03492923,197.26,197.22,0.03659554]
[1739323213868,0.03492923,197.26,197.23,8.90551829]
[1739323214679,0.03492923,197.26,197.25,8.90551829]
[1739323215276,0.03492923,197.26,197.25,13.97591829]
[1739323215476,0.03492923,197.26,197.25,5.0704]
[1739323216675,0.03492923,197.26,197.25,13.97591829]
[1739323216876,13.97411829,197.33,197.27,5.0697]
[1739323217076,8.90551829,197.35,197.29,8.90551829]
[1739323217277,10.02767687,197.38,197.33,8.90551829]
[1739323217477,10.02767687,197.38,197.35,8.90551829]
[1739323217880,5.0661,197.42,197.35,8.90551829]
[1739323218073,0.03325212,197.38,197.37,5.0673]
[1739323218780,0.03325212,197.38,197.36,5.0676]
[1739323219678,0.03325212,197.38,197.35,5.10089879]
[1739323220077,0.03325212,197.38,197.35,0.03299879]
[1739323220676,0.03325212,197.38,197.35,5.10079879]
[1739323222070,0.03325212,197.38,197.35,0.03299879]
[1739323223176,0.03325212,197.38,197.36,5.0676]
[1739323223375,0.03325212,197.38,197.35,0.03299879]
[1739323226482,5.0676,197.36,197.35,0.03299879]
[1739323227273,0.03325212,197.38,197.35,0.03299879]
[1739323227883,5.10045212,197.38,197.35,0.03299879]
[1739323228683,5.0676,197.36,197.35,0.03299879]
[1739323230492,13.86256666,197.37,197.27,1.5987]
[1739323230687,13.86256666,197.34,197.24,13.86256666]
[1739323230990,13.86256666,197.34,197.21,18.36176666]
[1739323231290,13.86256666,197.31,197.21,1.4646]
[1739323231587,0.03888842,197.29,197.21,1.4646]
[1739323231983,0.03888842,197.29,197.24,0.03310421]
[1739323233087,0.03888842,197.29,197.24,13.89567087]
[1739323233589,0.03888842,197.29,197.28,5.0697]
[1739323234483,5.0676,197.36,197.28,5.0697]
[1739323234692,61.62252715,197.38,197.27,13.86256666]
[1739323234989,5.0674,197.37,197.27,13.86256666]
[1739323235188,5.0674,197.37,197.32,5.0685]
[1739323235587,61.62252715,197.38,197.27,13.86256666]
[1739323235588,5.0676,197.36,197.27,13.86256666]
[1739323235794,5.10242679,197.36,197.33,0.03384634]
[1739323235989,0.03482679,197.36,197.33,0.03384634]
[1739323236886,0.03482679,197.36,197.34,5.0679]
[1739323237093,0.03482679,197.36,197.33,0.03384634]
[1739323237291,0.03482679,197.36,197.33,13.896413]
[1739323237596,0.03482679,197.36,197.34,5.0681]
[1739323237895,0.03482679,197.36,197.33,13.896413]
[1739323238496,0.03482679,197.36,197.33,0.03384634]
[1739323238994,0.03482679,197.36,197.35,5.0679]
[1739323240790,0.03482679,197.36,197.34,5.0681]
[1739323240992,0.03482679,197.36,197.33,13.896413]
[1739323242393,0.03482679,197.36,197.33,0.03384634]
[1739323242785,5.0679,197.35,197.33,0.03384634]
[1739323244597,5.0681,197.34,197.33,0.03384634]
[1739323245091,5.0697,197.29,197.24,5.0705]
[1739323245293,13.86256666,197.34,197.21,15.38976666]
[1739323246298,5.1047124,197.29,197.26,0.03215169]
[1739323246800,0.0351124,197.29,197.26,0.03215169]
[1739323247801,5.0699,197.27,197.26,0.03215169]
[1739323248001,0.0351124,197.29,197.26,0.03215169]
[1739323248396,5.0699,197.27,197.26,0.03215169]
[1739323250398,5.1048124,197.29,197.26,0.03215169]
[1739323250597,0.0351124,197.29,197.26,0.03215169]
[1739323251199,5.0699,197.27,197.26,0.03215169]
[1739323253207,5.0697,197.28,197.26,0.03215169]
[1739323253702,0.0351124,197.29,197.26,0.03215169]
[1739323253906,5.0699,197.27,197.26,0.03215169]
[1739323254900,5.0713,197.22,197.18,1.5819]
[1739323255100,5.0713,197.22,197.15,13.86256666]
[1739323255503,5.0713,197.22,197.17,5.0725]
[1739323255703,5.0713,197.22,197.15,13.86256666]
[1739323256106,0.03753494,197.2,197.17,0.03316319]
[1739323256599,0.03753494,197.2,197.18,5.0722]
[1739323256801,0.03753494,197.2,197.17,0.03316319]
[1739323257501,0.03753494,197.2,197.19,5.072]
[1739323257701,13.86256666,197.31,197.18,13.86256666]
[1739323258108,5.0701,197.27,197.22,5.0711]
[1739323258910,0.03377193,197.26,197.23,0.03628047]
[1739323259303,5.10397193,197.26,197.23,0.03628047]
[1739323260108,5.0704,197.25,197.23,0.03628047]
[1739323260509,0.03377193,197.26,197.23,0.03628047]
[1739323260709,5.0704,197.25,197.23,0.03628047]
[1739323262216,5.0707,197.24,197.23,0.03628047]
[1739323263514,13.86256666,197.25,197.14,1.5754]
[1739323263714,13.86256666,197.22,197.11,7.02777838]
[1739323264118,5.0721,197.19,197.13,5.0733]
[1739323264415,13.86256666,197.22,197.13,5.0733]
[1739323264610,0.03228058,197.18,197.14,0.03872172]
[1739323265015,5.10458058,197.18,197.14,0.03872172]
[1739323265218,5.10458058,197.18,197.14,5.11192172]
[1739323265418,0.03228058,197.18,197.14,5.11192172]
[1739323266616,0.03228058,197.18,197.14,0.03872172]
[1739323267018,0.03228058,197.18,197.15,5.073]
[1739323267220,0.03228058,197.18,197.14,0.03872172]
[1739323268320,0.03228058,197.18,197.15,5.073]
[1739323268819,5.10458058,197.18,197.14,0.03872172]
[1739323269618,0.03228058,197.18,197.14,5.11172172]
[1739323270318,0.03228058,197.18,197.14,0.03872172]
[1739323271124,5.0725,197.17,197.14,0.03872172]
[1739323271617,5.10458058,197.18,197.14,0.03872172]
[1739323271919,0.03228058,197.18,197.15,5.0728]
[1739323272417,0.03228058,197.18,197.14,5.11192172]
[1739323272617,0.03228058,197.18,197.14,0.03872172]
[1739323273518,5.073,197.15,197.14,0.03872172]
[1739323274322,5.10478058,197.18,197.14,0.03872172]
[1739323274821,5.10478058,197.18,197.14,5.11202172]
[1739323275116,0.03228058,197.18,197.14,5.11202172]
[1739323276325,0.03228058,197.18,197.14,0.03872172]
[1739323276522,0.03228058,197.18,197.16,5.0726]
[1739323277719,0.03228058,197.18,197.14,0.03872172]
[1739323277919,0.03228058,197.18,197.15,5.073]
[1739323278828,0.03228058,197.18,197.16,5.0726]
[1739323279723,0.03228058,197.18,197.14,0.03872172]
[1739323280324,0.03228058,197.18,197.15,5.0728]
[1739323280627,0.03228058,197.18,197.14,0.03872172]
[1739323280928,0.03228058,197.18,197.15,5.0729]
[1739323281325,0.03228058,197.18,197.14,0.03872172]
[1739323282921,5.10478058,197.18,197.14,0.03872172]
[1739323283124,0.03228058,197.18,197.14,0.03872172]
[1739323283521,5.073,197.15,197.14,0.03872172]
[1739323284425,5.073,197.15,197.14,2.172e-05]
[1739323300451,5.0751,197.07,197.04,1.5554]
[1739323300750,13.86256666,197.12,197.04,1.5554]
[1739323301648,5.0746,197.09,197.06,0.03534111]
[1739323301848,0.03869922,197.1,197.06,0.03534111]
[1739323303545,5.11319922,197.1,197.06,0.03534111]
[1739323303851,0.03869922,197.1,197.06,0.03534111]
[1739323304349,5.0746,197.09,197.06,0.03534111]
[1739323304846,0.03869922,197.1,197.06,0.03534111]
[1739323305653,0.03869922,197.1,197.07,5.075]
[1739323305948,0.03869922,197.1,197.06,0.03534111]
[1739323306651,0.03869922,197.1,197.06,5.11044111]
[1739323306852,0.03869922,197.1,197.06,0.03534111]
[1739323307347,0.03869922,197.1,197.07,5.075]
[1739323308355,0.03869922,197.1,197.06,0.03534111]
[1739323308655,5.0746,197.09,197.06,0.03534111]
[1739323309352,0.03869922,197.1,197.07,5.0751]
[1739323310351,0.03869922,197.1,197.06,0.03534111]
[1739323310751,5.11309922,197.1,197.06,0.03534111]
[1739323311248,5.0746,197.09,197.06,0.03534111]
[1739323311455,0.03869922,197.1,197.06,0.03534111]
[1739323312451,0.03869922,197.1,197.06,5.11064111]
[1739323313053,5.0746,197.09,197.06,0.03534111]
[1739323313247,0.03869922,197.1,197.06,0.03534111]
[1739323314458,8.90065757,197.16,197.08,8.90065757]
[1739323314660,8.90065757,197.18,197.1,8.90065757]
[1739323314856,8.90065757,197.18,197.11,1.5529]
[1739323315157,8.90065757,197.18,197.11,3.0385]
[1739323315351,13.97315757,197.18,197.12,5.0737]
[1739323315553,13.97315757,197.18,197.11,3.0385]
[1739323315754,0.03598641,197.17,197.14,5.0732]
[1739323316258,0.03598641,197.17,197.13,5.11023774]
[1739323316751,0.03598641,197.17,197.13,0.03693774]
[1739323316955,8.90065757,197.16,197.13,0.03693774]
[1739323317158,13.97395757,197.14,197.13,0.03693774]
[1739323319661,5.0733,197.14,197.13,0.03693774]
[1739323322155,5.0748,197.09,197.06,1.5002]
[1739323322353,13.90495161,197.11,197.06,1.5002]
[1739323322853,5.075,197.08,197.06,1.5002]
[1739323323859,0.0382573,197.09,197.05,0.03403854]
[1739323325464,5.0749,197.08,197.05,0.03403854]
[1739323325665,0.0382573,197.09,197.05,0.03403854]
[1739323326067,5.0748,197.08,197.05,0.03403854]
[1739323327259,0.0382573,197.09,197.05,0.03403854]
[1739323327964,5.0753,197.06,197.05,0.03403854]
[1739323329465,13.90495161,197.08,196.97,8.49447838]
[1739323329466,29.14495161,197.08,196.97,8.49447838]
[1739323329664,13.90495161,197.03,196.97,7.02777838]
[1739323330866,5.0771,196.99,196.98,0.03786665]
[1739323333066,5.0771,196.99,196.98,6.665e-05]
[1739323335770,5.0785,196.94,196.9,1.4794]
[1739323335971,13.90495161,196.96,196.9,1.4794]
[1739323336566,5.0784,196.95,196.9,1.4794]
[1739323336772,0.03555061,196.94,196.91,0.03308961]
[1739323339573,8.91718129,196.93,196.91,0.03308961]
[1739323343867,5.0789,196.92,196.91,0.03308961]
[1739323345370,5.08,196.88,196.83,5.0812]
[1739323345570,15.24,197.06,196.8,13.48318129]
[1739323345571,8.91718129,196.87,196.8,13.48318129]
[1739323346170,5.0805,196.86,196.8,18.56498129]
[1739323346371,8.91718129,196.87,196.81,0.03257402]
[1739323346569,0.03559699,196.85,196.81,0.03257402]
[1739323347270,0.03559699,196.85,196.83,5.0812]
[1739323349371,0.03559699,196.85,196.84,5.081]
[1739323353077,8.95277828,196.85,196.81,5.11427402]
[1739323353671,8.91718129,196.83,196.81,0.03257402]
[1739323354278,5.0815,196.82,196.81,0.03257402]
[1739323357384,5.0815,196.82,196.75,5.0833]
[1739323357582,8.91718129,196.77,196.75,5.0833]
[1739323358185,8.91718129,196.77,196.76,5.0831]
[1739323359483,0.03709405,196.78,196.77,5.0828]
[1739323360685,0.03709405,196.78,196.75,0.03382513]
[1739323360686,8.91718129,196.81,196.8,5.082]
[1739323361889,8.91718129,196.81,196.75,1.58842513]
[1739323362888,8.91718129,196.81,196.79,5.0823]
[1739323363492,8.91718129,196.81,196.75,1.58842513]
[1739323363790,8.91718129,196.79,196.77,5.0826]
[1739323363982,5.0827,196.78,196.75,0.03382513]
[1739323364188,8.91718129,196.76,196.75,0.03382513]
[1739323366293,0.03342698,196.77,196.76,5.0831]
[1739323366488,8.91718129,196.8,196.76,8.91718129]
[1739323366792,8.91718129,196.84,196.78,8.91718129]
[1739323367293,8.91718129,196.88,196.83,5.081]
[1739323367488,8.91718129,196.88,196.82,8.91718129]
[1739323367692,0.03641177,196.87,196.83,0.03258492]
[1739323367993,0.03641177,196.87,196.83,5.11378492]
[1739323368193,8.91718129,196.86,196.83,0.03258492]
[1739323369288,13.99788129,196.86,196.83,0.03258492]
[1739323369590,5.0807,196.86,196.83,0.03258492]
[1739323370692,0.03641177,196.87,196.83,0.03258492]
[1739323370896,5.11671177,196.87,196.83,0.03258492]
[1739323371191,0.03641177,196.87,196.83,0.03258492]
[1739323372497,5.11661177,196.87,196.83,0.03258492]
[1739323372694,0.03641177,196.87,196.83,0.03258492]
[1739323373099,5.11681177,196.87,196.83,0.03258492]
[1739323373288,0.03641177,196.87,196.83,0.03258492]
[1739323374795,5.0806,196.86,196.83,0.03258492]
[1739323375795,0.03641177,196.87,196.83,0.03258492]
[1739323378200,0.03641177,196.87,196.84,5.081]
[1739323379793,5.0809,196.85,196.83,0.03258492]
[1739323379998,0.03641177,196.87,196.83,0.03258492]
[1739323380499,5.0807,196.86,196.83,0.03258492]
[1739323380698,13.94382149,196.85,196.83,0.03258492]
[1739323381499,5.081,196.84,196.83,0.03258492]
[1739323384097,13.94382149,196.85,196.83,0.03258492]
[1739323384302,0.03641177,196.87,196.83,0.03258492]
[1739323385305,5.081,196.84,196.83,0.03258492]
[1739323385505,19.02482149,196.84,196.83,0.03258492]
[1739323385805,5.0821,196.8,196.76,3.1416]
[1739323385999,5.0821,196.8,196.76,1.6025]
[1739323386901,5.11548619,196.8,196.76,1.64103517]
[1739323387400,0.03338619,196.8,196.76,0.03853517]
[1739323388303,5.0828,196.78,196.76,0.03853517]
[1739323389003,5.0828,196.77,196.76,0.03853517]
[1739323389604,14.01677376,196.77,196.76,0.03853517]
[1739323391002,8.93397376,196.77,196.76,0.03853517]
[1739323391606,14.01677376,196.77,196.76,0.03853517]
[1739323399013,8.93397376,196.77,196.67,3.1988]
[1739323399310,5.0844,196.71,196.67,3.1988]
[1739323400010,8.93397376,196.72,196.67,3.1988]
[1739323400212,0.03356903,196.71,196.67,3.23208483]
[1739323400811,8.93397376,196.74,196.67,12.16605859]
[1739323401112,8.93397376,196.74,196.67,12.13277376]
[1739323401313,14.01777376,196.74,196.68,5.0849]
[1739323401812,8.93397376,196.74,196.67,12.13277376]
[1739323402012,14.01837376,196.72,196.69,0.0368655]
[1739323402205,14.01837376,196.72,196.67,3.1988]
[1739323402404,8.96955496,196.72,196.69,0.0363087]
[1739323403115,8.96955496,196.72,196.69,5.1209087]
[1739323403411,8.96955496,196.72,196.69,0.0363087]
[1739323403613,0.0355812,196.72,196.69,0.0363087]
[1739323404012,8.96955496,196.72,196.69,0.0363087]
[1739323404414,14.05365496,196.72,196.69,0.0363087]
[1739323405112,5.0846,196.71,196.69,0.0363087]
[1739323405317,8.96955496,196.72,196.69,0.0363087]
[1739323405617,0.0355812,196.72,196.69,0.0363087]
[1739323405813,8.93397376,196.76,196.69,8.97028246]
[1739323406021,8.93397376,196.76,196.69,8.93397376]
[1739323406316,8.93397376,196.76,196.71,5.0843]
[1739323406614,8.93397376,196.76,196.69,8.93397376]
[1739323406918,0.03287913,196.74,196.73,5.0836]
[1739323407111,8.93397376,196.78,196.71,8.9663421]
[1739323407316,8.93397376,196.8,196.73,8.93397376]
[1739323407514,8.93397376,196.8,196.74,1.5321]
[1739323408217,0.03409986,196.79,196.75,0.03509952]
[1739323408819,0.03409986,196.79,196.75,5.11839952]
[1739323409014,5.11649986,196.79,196.75,5.11839952]
[1739323409317,0.03409986,196.79,196.75,0.03509952]
[1739323409618,8.93397376,196.78,196.75,0.03509952]
[1739323410416,0.03409986,196.79,196.75,0.03509952]
[1739323411922,0.03409986,196.79,196.76,5.0828]
[1739323413216,0.03409986,196.79,196.75,6.61829952]
[1739323413825,5.11659986,196.79,196.75,6.61829952]
[1739323414118,5.11659986,196.79,196.76,5.083]
[1739323414119,0.03409986,196.79,196.76,5.083]
[1739323414621,0.03409986,196.79,196.75,6.61829952]
[1739323415322,5.11659986,196.79,196.75,6.61829952]
[1739323415522,0.03409986,196.79,196.76,5.083]
[1739323417118,0.03409986,196.79,196.75,1.53499952]
[1739323417321,5.11639986,196.79,196.75,6.61829952]
[1739323417722,0.03409986,196.79,196.75,1.53499952]
[1739323417923,0.03409986,196.79,196.76,5.083]
[1739323418624,0.03409986,196.79,196.77,5.0827]
[1739323419120,0.03409986,196.79,196.75,10.46897328]
[1739323419121,0.03409986,196.79,196.76,5.083]
[1739323420223,5.11649986,196.79,196.75,6.61829952]
[1739323420620,0.03409986,196.79,196.75,1.53499952]
[1739323420820,0.03409986,196.79,196.76,5.0828]
[1739323421224,8.93397376,196.85,196.77,8.93397376]
[1739323421417,8.93397376,196.81,196.75,10.43387376]
[1739323421924,8.93397376,196.83,196.75,10.43387376]
[1739323422321,8.93397376,196.83,196.81,5.0815]
[1739323422817,0.03510228,196.84,196.79,8.93397376]
[1739323423019,0.03510228,196.84,196.77,0.03794966]
[1739323423020,0.03510228,196.84,196.77,8.97192342]
[1739323423425,0.03510228,196.84,196.79,5.0823]
[1739323423625,8.93397376,196.83,196.79,5.0823]
[1739323423827,14.01537376,196.83,196.79,5.0823]
[1739323424726,8.93397376,196.83,196.77,8.97192342]
[1739323425125,0.03510228,196.84,196.77,8.97192342]
[1739323425325,0.03510228,196.84,196.83,5.0813]
[1739323425928,0.03510228,196.84,196.82,0.03433465]
[1739323427734,5.11610228,196.84,196.82,0.03433465]
[1739323428233,8.93397376,196.83,196.82,0.03433465]
[1739323428933,14.01527376,196.83,196.82,0.03433465]
[1739323435033,5.0827,196.78,196.76,4.73840558]
[1739323435338,8.93397376,196.77,196.76,4.73840558]
[1739323435837,5.0831,196.76,196.7,29.86075376]
[1739323436139,8.93397376,196.75,196.7,29.86075376]
[1739323436335,8.93397376,196.77,196.71,0.03335739]
[1739323436734,8.93397376,196.77,196.71,1.54575739]
[1739323437132,8.93397376,196.77,196.73,5.0837]
[1739323438737,14.01687376,196.77,196.73,5.0837]